Cogmind - Beta 15 @@@ ROGUE MODE // 2025.08.19 @ 21:04:24 Player: NQH Result: Destroyed by S-10 Pest with Light Assault Rifle Performance ------------- Evolutions (1) 500 Regions Visited (3) 600 Robots Destroyed (31) 155 Value Destroyed (628) 628 Prototype IDs (3) 60 Alien Tech Used (0) 0 Bonus (0) 0 TOTAL SCORE: 1943 Bonus ------- None Cogmind --------- Core Integrity 0/400 Matter 169/300 Energy 80/100 System Corruption 2% Temperature Cool (6) Movement Core (50) Location -9/Materials Parts ------- > --- POWER (3) -------- (None) > --- PROPULSION (2) --- (None) > --- UTILITY (2) ------ Core Shielding > --- WEAPON (2) ------- (None) > --- INVENTORY (5) ---- Datajack Datajack Datajack Datajack Peak State ------------ > --- POWER ------------ Ion Engine > --- PROPULSION ------- Compact Wheel Compact Wheel > --- UTILITY ---------- Improved Heat Sink Experimental Sensor Array > --- WEAPON ----------- Light Cannon Rocket Launcher > --- INVENTORY -------- Ion Engine Core Shielding Light Assault Rifle Welding Torch [Rating: 18] Favorites ----------- Power Ion Engine Engine Ion Engine Propulsion Light Treads Treads Light Treads Leg Aluminum Leg Wheel Compact Wheel Hover Unit Backup Propulsion I Flight Unit Flight Unit Utility Medium Armor Plating Device Experimental Sensor Array Processor Visual Processing Unit Protection Medium Armor Plating Weapon Medium Laser Energy Gun Medium Laser Ballistic Gun Light Assault Rifle Ballistic Cannon Light Cannon Launcher Grenade Launcher Special Weapon Welding Torch Special Melee Weapon Datajack Build | -11 -10 -10 -9 ------- Run | Yrd Mat Min Mat Slots Evolved 2 | . . . 2 Power 2 | . . . 2 Propulsion . | . . . . Utility . | . . . . Weapon . | . . . . Parts Attached 34 | 8 13 6 7 Power 5 | 1 2 1 1 Engine 5 | 1 2 1 1 Core . | . . . . Reactor . | . . . . Propulsion 11 | 4 3 2 2 Treads 2 | 2 . . . Leg 2 | 2 . . . Wheel 5 | . 2 2 1 Hover . | . . . . Flight 2 | . 1 . 1 Utility 8 | . 6 2 . Device 2 | . . 2 . Storage . | . . . . Processor 1 | . 1 . . Hackware . | . . . . Protection 5 | . 5 . . Artifact . | . . . . Weapon 10 | 3 2 1 4 Energy Gun 1 | 1 . . . Energy Cannon . | . . . . Ballistic Gun 3 | 2 . . 1 Ballistic Cannon 1 | . 1 . . Launcher 2 | . 1 1 . Special Weapon 1 | . . . 1 Impact Weapon . | . . . . Slashing Weapon . | . . . . Piercing Weapon . | . . . . Special Melee Weapon 2 | . . . 2 Unidentified Prototypes 1 | . . 1 . Parts Lost 16 | . 2 1 13 Power 3 | . . . 3 Propulsion 5 | . 1 . 4 Utility 2 | . . . 2 Weapon 6 | . 1 1 4 Highest Loss Streak 7 | . 2 1 7 To Critical Strikes . | . . . . Average Backups 1 | . 1 3 3 Power . | . . . . Propulsion . | . . . . Utility . | . . . . Weapon . | . . . . Tool/Special . | . . . . Unused Backups 3 | . . . 3 Power . | . . . . Propulsion . | . . . . Utility . | . . . . Weapon . | . . . . Tool/Special 3 | . . . 3 Average Slot Usage (%) 81 | . 82 100 62 Engine 14 | . 14 14 17 Treads 11 | . 17 . . Wheel 7 | . 1 28 11 Device 4 | . . 16 13 Processor 5 | . 6 5 . Protection 12 | . 14 6 7 Energy Gun 8 | . 12 . . Ballistic Gun 6 | . 6 8 5 Ballistic Cannon 2 | . 1 14 . Launcher 4 | . 5 5 . Special Melee Weapon 1 | . . . 6 Peak Build Rating 18 | 5 9 18 16 Average Rating 8 | 4 7 13 14 On Entrance 7 | . 5 8 16 Naked Turns . | . . . . Heaviest Build 24 | 9 24 14 14 Greatest Support 40 | 40 40 32 20 Greatest Overweight (x) 3 | 1 3 . 2 Average Overweight (x) . | . . . . Largest Inventory Capacity 5 | 5 5 5 5 Average Capacity 5 | 5 5 5 5 Most Carried 5 | 1 5 5 5 Average Carried 1 | . 1 3 2 Final Capacity 5 | 5 5 5 5 Final Carried 4 | 1 1 4 4 Class Distribution -------------------- 94% | Mutant 5% | Scavenger-Mutant Dominant Class ---------------- Mutant | -10/Materials Mutant | -10/Mines Mutant | -9/Materials Resources | -11 -10 -10 -9 ----------- Run | Yrd Mat Min Mat Matter Collected 716 | 246 225 141 104 Remotely . | . . . . Salvage Created 583 | . 266 175 142 Parts 53 | . 26 16 11 Haulers Intercepted . | . . . . Recyclers Shooed 2 | . 2 . . Parts Field Recycled . | . . . . Retrieved Matter . | . . . . Parts Self-Destructed . | . . . . Prevented . | . . . . Kills | -11 -10 -10 -9 ------- Run | Yrd Mat Min Mat Combat Hostiles Destroyed 24 | . 14 4 6 Melee 1 | . . . 1 Guns 12 | . 9 1 2 Cannons 2 | . . 1 1 AOE 9 | . 5 2 2 Classes Destroyed 8 | . 5 1 2 Worker 2 | . 1 1 . Builder 1 | . . 1 . Recycler 1 | . . . 1 Mechanic 1 | . 1 . . Watcher 2 | . 2 . . Swarmer 14 | . 9 . 5 Grunt 9 | . 5 4 . Sentry 1 | . . . 1 Best Kill Streak 5 | . 4 4 5 Combat Bots Only 4 | . 4 2 4 Max Kills in Single Turn 3 | . 2 1 3 Gunslinging 1 | . 1 . . Exploded 2 | . 2 1 2 Melee 1 | . . . 1 Uniques/NPCs Destroyed . | . . . . Combat | -11 -10 -10 -9 -------- Run | Yrd Mat Min Mat Hostile Shots Fired 206 | . 57 46 103 Missed 60 | . 19 22 19 Hits 146 | . 38 24 84 Projectile 146 | . 38 24 84 Critical Strikes 3 | . . 2 1 Actively Blocked 1 | . . . 1 Damage Taken 1747 | . 470 357 920 Core 526 | . 52 69 405 Absorbed by Shields . | . . . . Redirected to Shielding 35 | . . 9 26 Regen/Repaired (Parts) 23 | . 23 . . Core Remaining (%) 75 | 100 . 51 . Volleys Fired 91 | . 50 15 26 Largest 2 | . 2 2 2 Hottest 80 | . 80 63 40 Shots Fired 142 | . 82 30 30 Gun 106 | . 71 9 26 Cannon 15 | . . 15 . Launcher 17 | . 11 6 . Special 4 | . . . 4 Kinetic 72 | . 22 24 26 Thermal 53 | . 49 . 4 Explosive 17 | . 11 6 . Electromagnetic . | . . . . Robot Hit Streak 5 | . 5 3 4 Robot Miss Streak 5 | . 5 4 4 Penetration Max . | . . . . Secondary Targets 1 | . 1 . . Max Gunslinging Chain 1 | . 1 . . Shots Hit Robots 84 | . 40 16 28 Core Hits 50 | . 27 12 11 Critical Kills . | . . . . Critical Parts Destroyed . | . . . . Critical Strikes 2 | . 2 . . Burn 2 | . 2 . . Melee Attacks 15 | . . . 15 Impact . | . . . . Slashing . | . . . . Piercing . | . . . . Sneak Attacks 7 | . . . 7 Combat Hostiles . | . . . . Follow-up Attacks . | . . . . Damage Inflicted 2147 | . 1175 483 489 Guns 629 | . 472 39 118 Cannons 108 | . . 108 . Explosions 1362 | . 695 326 341 Melee . | . . . . Ramming 37 | . 8 10 19 Kinetic 417 | . 152 147 118 Thermal 331 | . 320 . 11 Explosive 1362 | . 695 326 341 Electromagnetic . | . . . . Impact . | . . . . Slashing . | . . . . Piercing . | . . . . Highest Corruption 2 | . . . 2 Average Corruption 1 | . . . 1 Corruption Purged . | . . . . Corruption Blocked . | . . . . Effects 2 | . . . 2 Message Errors 1 | . . . 1 Data Loss (minor) 1 | . . . 1 Overload Shots . | . . . . Overflow Damage 80 | . 27 . 53 Projectiles . | . . . . Explosions 80 | . 27 . 53 Melee . | . . . . Knockbacks . | . . . . Impact . | . . . . Kinetic . | . . . . Secondary . | . . . . Self-Inflicted Damage 265 | . 25 28 212 Shots 5 | . 2 1 2 Rammed 17 | . 6 1 10 Targets Rammed 17 | . 6 1 10 Kicked . | . . . . Crushed . | . . . . Highest Temperature 343 | . 343 36 . Average Temperature 86 | . 93 20 . Received Heat Transfer 372 | . 153 180 39 Effects 1 | . 1 . . Damage (minor) 1 | . 1 . . Siege Activations . | . . . . Martial Activations . | . . . . Shielding Activations . | . . . . Robots Disrupted . | . . . . Combat Hostiles . | . . . . Robots Corrupted . | . . . . Combat Hostiles . | . . . . Parts Fried . | . . . . Impact Corruptions . | . . . . Robots Melted . | . . . . Combat Hostiles . | . . . . Parts Melted 1 | . 1 . . Heat Transferred 1185 | . 1110 . 75 Parts Sabotaged . | . . . . Parts Stolen . | . . . . Parts Stripped . | . . . . Power Chain Reactions . | . . . . Alert | -11 -10 -10 -9 ------- Run | Yrd Mat Min Mat Maximum Alert Level . | . . . . Low Security (%) 100 | 100 100 100 100 Level 1 . | . . . . Level 2 . | . . . . Level 3 . | . . . . Level 4 . | . . . . Level 5 . | . . . . High Security . | . . . . Max Security . | . . . . Peak Influence 160 | . 160 90 118 Initial 31 | . . 31 25 Average 45 | . 59 60 51 Influence Increases 849 | . 456 145 248 Destroy 0b10 Robot/C 480 | . 280 80 120 Destroy 0b10 Robot/NC 35 | . 20 10 5 Destroy Leader 114 | . 64 20 30 Successful Hack 14 | . 14 . . Disable Machine 60 | . . . 60 Destroy Structure 116 | . 48 35 33 Lose Combat Pursuer 30 | . 30 . . Influence Decreases 846 | . 374 161 311 Entered New Map 92 | . . 51 41 Time Decay 594 | . 354 100 140 Lost Part 160 | . 20 10 130 Squads Dispatched 3 | . 2 . 1 Investigation . | . . . . Extermination . | . . . . Reinforcement 3 | . 2 . 1 Assault . | . . . . Garrison . | . . . . Intercept . | . . . . Searches Triggered . | . . . . Construction Impeded . | . . . . Haulers Reinforced . | . . . . Active Scanning Responses . | . . . . Cargo Convoy Interrupts . | . . . . Stealth | -11 -10 -10 -9 --------- Run | Yrd Mat Min Mat Distress Signals 4 | . 3 . 1 Communications Jammed . | . . . . Distress Signals . | . . . . Times Spotted 48 | . 23 6 19 Peak Tracking Total 12 | . 4 2 12 Tactical Retreats 1 | . 1 . . Traps | -11 -10 -10 -9 ------- Run | Yrd Mat Min Mat Traps Triggered 2 | . 2 . . Indirectly . | . . . . Trap Hack Attempts . | . . . . Triggered . | . . . . Disarmed 4 | . 4 . . Reprogrammed . | . . . . Reused . | . . . . Traps Extracted . | . . . . Installed . | . . . . Triggered . | . . . . Machines | -11 -10 -10 -9 ---------- Run | Yrd Mat Min Mat Machines Disabled 6 | . . 2 4 Max in Single Turn 3 | . . 2 3 Machines Repaired . | . . . . Machines Dismantled . | . . . . Machines Sabotaged . | . . . . Overloaded Fab Kills . | . . . . Hacking | -11 -10 -10 -9 --------- Run | Yrd Mat Min Mat Machines Accessed 3 | . 3 . . Terminals 2 | . 2 . . Fabricators . | . . . . Repair Stations 1 | . 1 . . Recycling Units . | . . . . Scanalyzers . | . . . . Garrison Access . | . . . . Total Hacks 9 | . 9 . . Successful 7 | . 7 . . Failed 2 | . 2 . . Catastrophic . | . . . . Database Lockouts . | . . . . Manual 1 | . 1 . . Terminals 5 | . 5 . . Fabricators . | . . . . Repair Stations 4 | . 4 . . Recycling Units . | . . . . Scanalyzers . | . . . . Garrison Access . | . . . . Terminal Hacks 4 | . 4 . . Prototype ID Bank 1 | . 1 . . Disarm Traps 1 | . 1 . . Maintenance Status 1 | . 1 . . Hauler Manifests 1 | . 1 . . Fabricator Hacks . | . . . . Repair Station Hacks 3 | . 3 . . Scan Component 1 | . 1 . . Repair 1 | . 1 . . Refit 1 | . 1 . . Recycling Unit Hacks . | . . . . Scanalyzer . | . . . . Garrison Access Hacks . | . . . . Unauthorized Hacks . | . . . . Terminals . | . . . . Fabricators . | . . . . Repair Stations . | . . . . Recycling Units . | . . . . Scanalyzers . | . . . . Garrison Access . | . . . . Data Cores Recovered . | . . . . Used . | . . . . Hacking Detections 3 | . 3 . . Full Trace Events . | . . . . Feedback Events . | . . . . Feedback Blocked . | . . . . Robot Schematics Acquired . | . . . . Robots Built . | . . . . Authchips . | . . . . Time . | . . . . Total Robot Build Rating . | . . . . Part Schematics Acquired . | . . . . Parts Built . | . . . . Authchips . | . . . . Time . | . . . . Total Part Build Rating . | . . . . Parts Repaired 1 | . 1 . . Time 26 | . 26 . . Parts Recycled . | . . . . Recycled Matter . | . . . . Retrieved Matter . | . . . . Retrieved Components . | . . . . Parts Scanalyzed . | . . . . Part Schematics Acquired . | . . . . Parts Damaged . | . . . . Bothacking | -11 -10 -10 -9 ------------ Run | Yrd Mat Min Mat Used RIF Installer . | . . . . Robots Hacked 8 | . . . 8 Non-combat 8 | . . . 8 Combat . | . . . . Robot Hacks Applied 11 | . . . 11 parse_system 2 | . . . 2 no_distress 7 | . . . 7 find_recycling 1 | . . . 1 check_alert 1 | . . . 1 Relay Couplers Released . | . . . . Fabnet Peak Effective % . | . . . . Robots Rewired . | . . . . Allies Hacked . | . . . . Hacks Repelled . | . . . . Allies | -11 -10 -10 -9 -------- Run | Yrd Mat Min Mat Total Allies . | . . . . Largest Group . | . . . . Highest-Rated Group . | . . . . Highest-Rated Ally . | . . . . Total Orders . | . . . . Ally Attacks . | . . . . Total Damage . | . . . . Kills . | . . . . Allies Corrupted . | . . . . Allies Melted . | . . . . Intel | -11 -10 -10 -9 ------- Run | Yrd Mat Min Mat Active Infowar (turns) 988 | . 514 185 289 Optics 581 | . 514 67 . Sensors 407 | . . 118 289 Robot Analysis Total . | . . . . Derelict Logs Recovered . | . . . . Drone Launches . | . . . . Drone Recoveries . | . . . . Exploration | -11 -10 -10 -9 ------------- Run | Yrd Mat Min Mat Turns Passed 1964 | 402 1050 214 298 Spaces Moved 1083 | 147 559 169 208 Core 204 | 10 175 . 19 Treads 434 | 130 304 . . Legs 7 | 7 . . . Wheels 408 | . 50 169 189 Hover 12 | . 12 . . Flight 18 | . 18 . . Fastest Speed 50 | 50 100 80 50 Average Speed 133 | 152 156 92 92 Slowest Speed 340 | 160 340 100 150 Overloaded Moves . | . . . . Propulsion Burnouts . | . . . . Robots Hopped . | . . . . Potential Cave-ins . | . . . . Cave-ins Triggered . | . . . . Exploration Rate (%) 31 | 7 60 36 23 Regions Visited 3 Branch Regions 1 Pre-discovered Areas . | . . . . Known Exits Taken . | . . . . Unknown Exits Taken 3 | 1 1 1 . Scrap Searched . | . . . . Spaces Dug 3 | . 3 . . Terrain Destroyed 142 | . 46 59 37 Melee . | . . . . Projectile . | . . . . AOE 142 | . 46 59 37 Terrain Rammed . | . . . . Walls Destroyed . | . . . . Machines Disabled . | . . . . Actions | -11 -10 -10 -9 --------- Run | Yrd Mat Min Mat Total 1443 | 322 648 196 277 Wait 170 | 167 3 . . Move 1080 | 146 558 168 208 Hop . | . . . . Pick Up 12 | 1 3 3 5 Fast Attach 13 | 4 5 . 4 Attach 11 | 1 3 1 6 Detach 5 | . 3 . 2 Swap 18 | 3 9 6 . Drop 11 | . 8 2 1 Fire 91 | . 50 15 26 Melee 15 | . . . 15 Ram 12 | . 1 1 10 Kick . | . . . . Crush 5 | . 5 . . Escape Stasis . | . . . . Rewire . | . . . . Trap . | . . . . Miscellaneous . | . . . . Route ------- -11/Scrapyard -10/Materials (discovered 3 exits: [*Mat x2] / [*Min]) -10/Mines -9/Materials History --------- Turn | Location | Event 9 | -11/Scrapyard | Discovered new exit (range 15) 403 | -11/Scrapyard | Entered Materials 404 | -10/Materials | Build established: Mutant 636 | -10/Materials | Discovered new exit (range 10) 743 | -10/Materials | Repaired Lgt. Treads 1035 | -10/Materials | Discovered new exit (range 17) 1386 | -10/Materials | Discovered new exit (range 11) 1453 | -10/Materials | Entered Mines 1487 | -10/Mines | Received a Rocket Launcher from a helpful Derelict 1546 | -10/Mines | Found a damaged Exp. Sensor Array with a note attached 1548 | -10/Mines | Found Prototype Device 1549 | -10/Mines | Identified Exp. Sensor Array 1650 | -10/Mines | Discovered new exit (range 7) 1667 | -10/Mines | Entered Materials 1667 | -9/Materials | Evolved 2 slots: Power x2 1744 | -9/Materials | Core integrity fell below 50% 1774 | -9/Materials | Lost 6 parts (1p2n1u2w) 1957 | -9/Materials | Core integrity fell below 20% 1965 | -9/Materials | Destroyed by S-10 Pest with Light Assault Rifle Last Messages --------------- 01953_ Datajack destroyed. 01954_ Slammed into S-10 Pest. 01956_ Destabilizing: Core damaged (-16). 01956_ Exp. Sensor Array destroyed. 01956_ Com. Wheel destroyed. 01957_ Slammed into S-10 Pest. 01957_ Lgt. Ion Engine broken. 01957_ Destabilizing: Short circuit. 01959_ Slammed into S-10 Pest. 01959_ K-01 Serf collects debris. 01959_ Broken Lgt. Ion Engine destroyed. 01960_ I|FM%BWGT1>WB88T&32GCKPQ 01960_ Slammed into S-10 Pest. 01961_ Destabilizing: System corrupted (+1). 01962_ Slammed into S-10 Pest. 01963_ S-10 Pest destroyed. 01964_ Acquired 20 matter. 01964_ Hvy. Assault Rifle destroyed. 01965_ Acquired Flight Unit. 01965_ Flight Unit destroyed. Map ----- +----------------------------------------------------+ | ?????????????????????????????????????????????????? | | ?????????????????????????????????????????????????? | | ?????????????????????????????????????????????????? | | ?????????????????????????????????????????????????? | | ?????????????????????????????????????????????????? | | ?????????????????????????????????????????????????? | | ?????????????????????????????????????????????????? | | ?????????????????????????????????????????????????? | | ???????????????????? ????????????????????????????? | | ???????????????????? ????????????????????????????? | | ???????????????????? ????????????????????????????# | | ???????????????????? ????????????????????????????# | | ???????????????????? ""??????????????????????????# | | ???????????????????? ""??????????????????????????# | | ???????????????????? ""??????????????????????????# | | ??????#????????????? ??????????????????????????# | | ??????# ??????????###+###????????????????????????# | | ??????# ?????????# #????####????????????????# | | ??????# ######### [ ???? #????????????????# | | ??????# =%[ ???? #????????????????# | | ??????# = ##k ????? +????????????????# | | ??????#][! #? ?????# #????????????????# | | ??????#][! #?##/####### #????????????????# | | ??????#]! #?# Ys ## #?????????######## | | ??????# !/ ###g"ss* =## #######?#### ## ## | | ??????# !! g/ "T s@ ## ## ###### ### | | ??????# ########## "" g ## ## """# # | | ???????????????????# ## ## """# # | | ???????????????##########+## # """# # | | ??????????? # # # | | ??????????? T +^ """# + | | ??????????? # """# # | | ???????????? ##### # """# # | | ???????????? ????## ## # # | | ????????????? ??????# ##* ""?# # | | ????????????####### ??????# #? ""?########## | | ??????????????????# ???????# #? ???????#### ## | | ??????????????????# ???????## ##???????????##### | | ??????????????????# ???????# ################# | | ?????????????????? ????????# ! T | | ????????????????? ?????????# | | ???????????????????????????# """ | | ???????????????????????????# """ | | ???????????????????????????# """ | | ???????????????????????????# """ | | ???????????????????????????# """ | | ???????????????????????????# !! """ | | ???????????????????????????# ! | | ???????????????????????????######### | | ???????????????????????????????????# """ // | +----------------------------------------------------+ Best States ------------- Heat Dissipation 42 Energy Generation 15 Energy Capacity 275 Matter Stores 300 Matter Capacity 300 Sight Range 18 Robot Scan Range 20 Terrain Scan Density 10 Armor Coverage 450 Core Shielding 20 Evasion (%) 50 Recoil Reduction 2 Item Schematics ----------------- None Robot Schematics ------------------ None Fabricated ------------ Nothing Repaired ---------- Lgt. Treads | 83% | -10/Materials Alien Tech Used ----------------- None Achievements -------------- Universal Adapter Challenges ------------ None Game ------ Seed LightpackStasisCore Manual? 0 Play Time 00:27:25 Cumulative 11.7 hours Start 2025.08.19 @ 20:36:49 End 2025.08.19 @ 21:04:24 Sessions 1 Manual Loads 0 Difficulty Rogue Special Mode None Game No. 25 Rogue 25 Adventurer 0 Explorer 0 Win Type - Total 0 Types 0/0/0/0/0/0/0/0/0/0 Lore% 9 Gallery% 20 Achievement% 18 Wizard Run 0 Options --------- Layout 1 ASCII 0 Keyboard 1 Movement Vi Keybinds 0 Fullscreen 1 Font 16/TerminusCaps Map View 55x38 Zoom Use 0% Tactical HUD 1 Map Filters NONE Filters NONE Steam 1 RUN: 728bfb76-314a-4527-bb73-a41c41bf7429